fUST/lending_fUST_20250218
["ID","MTS","AMOUNT","RATE_DAILY","PERIOD"]
[353511950,1739891447776,-500.0,0.00014278,2]
[353511953,1739891447786,-500.0,0.00014278,2]
[353511954,1739891447796,-500.0,0.00014278,2]
[353511957,1739891447806,-500.0,0.00014278,2]
[353511959,1739891447815,-500.0,0.00014278,2]
[353511970,1739891447939,-500.0,0.00014278,2]
[353511973,1739891447954,-500.0,0.00014278,2]
[353511975,1739891447963,-500.0,0.00014278,2]
[353511977,1739891447973,-500.0,0.00014278,2]
[353511979,1739891447983,-500.0,0.00014278,2]
[353511981,1739891447993,-500.0,0.00014278,2]
[353511983,1739891448002,-500.0,0.00014278,2]
[353511985,1739891448012,-500.0,0.00014278,2]
[353511986,1739891448020,-500.0,0.00014278,2]
[353511988,1739891448030,-500.0,0.00014278,2]
[353511990,1739891448040,-500.0,0.00014278,2]
[353511992,1739891448050,-22134.6,0.00014278,2]
[353511994,1739891448060,-1342.14,0.00014278,2]
[353511996,1739891448070,-500.0,0.00014278,2]
[353511999,1739891448081,-686.87,0.00014278,2]
[353512001,1739891448091,-500.0,0.00014278,2]
[353512002,1739891448102,-10695.12,0.00014278,2]
[353512005,1739891448113,-500.0,0.00014278,2]
[353512006,1739891448123,-500.0,0.00014278,2]
[353512009,1739891448134,-830.39,0.00014278,2]
[353512010,1739891448144,-500.0,0.00014278,2]
[353512012,1739891448155,-500.0,0.00014278,2]
[353512014,1739891448165,-500.0,0.00014278,2]
[353512016,1739891448176,-500.0,0.00014278,2]
[353512019,1739891448186,-210.60721424,0.00014278,2]
[353512020,1739891448195,-500.0,0.00014278,2]
[353512022,1739891448205,-500.0,0.00014278,2]
[353512024,1739891448215,-500.0,0.00014278,2]
[353512026,1739891448224,-500.0,0.00014278,2]
[353512028,1739891448234,-500.0,0.00014278,2]
[353512030,1739891448244,-500.0,0.00014278,2]
[353512032,1739891448254,-1364.55,0.00014278,2]
[353512034,1739891448264,-500.0,0.00014278,2]
[353512036,1739891448274,-1348.21,0.00014278,2]
[353512038,1739891448284,-500.0,0.00014278,2]
[353512040,1739891448293,-625.72,0.00014278,2]
[353512042,1739891448303,-500.0,0.00014278,2]
[353512044,1739891448313,-500.0,0.00014278,2]
[353512046,1739891448323,-500.0,0.00014278,2]
[353512048,1739891448336,-342.0,0.00014279,2]
[353512050,1739891448346,-342.0,0.00014279,2]
[353512052,1739891448356,-500.0,0.0001428,2]
[353512054,1739891448367,-500.0,0.0001428,2]
[353512057,1739891448379,-500.0,0.0001428,2]
[353512059,1739891448389,-500.0,0.0001428,2]
[353512061,1739891448399,-1283.9,0.0001428,2]
[353512063,1739891448409,-500.0,0.0001428,2]
[353512065,1739891448419,-500.0,0.0001428,2]
[353512067,1739891448431,-533.64,0.0001428,2]
[353512069,1739891448441,-500.0,0.0001428,2]
[353512071,1739891448452,-500.0,0.0001428,2]
[353512073,1739891448463,-500.0,0.0001428,2]
[353512075,1739891448473,-500.0,0.0001428,2]
[353512077,1739891448483,-500.0,0.0001428,2]
[353512079,1739891448493,-500.0,0.0001428,2]
[353512081,1739891448502,-500.0,0.0001428,2]
[353512083,1739891448512,-500.0,0.0001428,2]
[353512085,1739891448522,-500.0,0.0001428,2]
[353512087,1739891448531,-949.04,0.0001428,2]
[353512089,1739891448541,-500.0,0.0001428,2]
[353512091,1739891448551,-500.0,0.00014281,2]
[353512093,1739891448561,-500.0,0.00014281,2]
[353512095,1739891448573,-500.0,0.00014281,2]
[353512097,1739891448584,-500.0,0.00014281,2]
[353512099,1739891448595,-500.0,0.00014281,2]
[353512101,1739891448606,-500.0,0.00014281,2]
[353512103,1739891448616,-500.0,0.00014281,2]
[353512105,1739891448627,-500.0,0.00014281,2]
[353512107,1739891448638,-500.0,0.00014281,2]
[353512109,1739891448648,-500.0,0.00014281,2]
[353512111,1739891448659,-500.0,0.00014281,2]
[353512113,1739891448670,-500.0,0.00014281,2]
[353512115,1739891448680,-500.0,0.00014281,2]
[353512117,1739891448690,-500.0,0.00014281,2]
[353512119,1739891448701,-500.0,0.00014281,2]
[353512121,1739891448711,-279.62676795,0.00014281,2]
[353512123,1739891448720,-500.0,0.00014281,2]
[353512125,1739891448730,-500.0,0.00014281,2]
[353512127,1739891448741,-500.0,0.00014281,2]
[353512129,1739891448751,-342.0,0.00014282,2]
[353512131,1739891448762,-342.0,0.00014282,2]
[353512133,1739891448772,-151.0,0.000143,2]
[353512135,1739891448781,-655.0791803,0.00014319,2]
[353512137,1739891448791,-3517.57299647,0.00014324,2]
[353512139,1739891448802,-193.76226366,0.00014343,2]
[353512141,1739891448812,-1868.44,0.00014358,2]
[353512143,1739891448824,-500.0,0.00014358,2]
[353512145,1739891448834,-967.97,0.00014358,2]
[353512147,1739891448844,-2653.16,0.00014358,2]
[353512149,1739891448855,-5175.18,0.00014358,2]
[353512151,1739891448865,-2105.37,0.00014358,2]
[353512153,1739891448875,-2054.28,0.00014358,2]
[353512155,1739891448885,-1057.59,0.00014358,2]
[353512157,1739891448895,-33299.43259783,0.0001436,5]
[353512159,1739891448906,-9950.97324311,0.0001436,5]
[353512161,1739891448917,-500.0,0.0001436,2]
[353512163,1739891448927,-500.0,0.0001436,2]
[353512164,1739891448938,-500.0,0.0001436,2]
[353512167,1739891448950,-500.0,0.0001436,2]
[353512169,1739891448961,-500.0,0.0001436,2]
[353512171,1739891448971,-649.16,0.0001436,2]
[353512173,1739891448981,-500.0,0.0001436,2]
[353512175,1739891448993,-500.0,0.0001436,2]
[353512177,1739891449004,-500.0,0.0001436,2]
[353512179,1739891449014,-500.0,0.0001436,2]
[353512181,1739891449026,-549.52,0.0001436,2]
[353512183,1739891449036,-500.0,0.0001436,2]
[353512185,1739891449047,-500.0,0.0001436,2]
[353512187,1739891449057,-500.0,0.0001436,2]
[353512189,1739891449067,-500.0,0.0001436,2]
[353512191,1739891449081,-500.0,0.0001436,2]
[353512193,1739891449091,-500.0,0.0001436,2]
[353512194,1739891449107,-500.0,0.0001436,2]
[353512195,1739891449117,-500.0,0.0001436,2]
[353512197,1739891449127,-500.0,0.0001436,2]
[353512199,1739891449136,-500.0,0.0001436,2]
[353512201,1739891449147,-500.0,0.0001436,2]
[353512203,1739891449158,-500.0,0.0001436,2]
[353512205,1739891449169,-500.0,0.0001436,2]
[353512207,1739891449180,-500.0,0.0001436,2]
[353512209,1739891449191,-500.0,0.0001436,2]
[353512211,1739891449200,-500.0,0.0001436,2]
[353512213,1739891449212,-500.0,0.0001436,2]
[353512215,1739891449221,-814.52,0.0001436,2]
[353512217,1739891449232,-500.0,0.0001436,2]
[353512219,1739891449245,-22134.6,0.0001436,2]
[353512221,1739891449256,-500.0,0.0001436,2]
[353512223,1739891449267,-1342.14,0.0001436,2]
[353512225,1739891449278,-1464.87,0.0001436,2]
[353512227,1739891449288,-500.0,0.0001436,2]
[353512229,1739891449298,-599.18,0.0001436,2]
[353512231,1739891449309,-500.0,0.0001436,2]
[353512233,1739891449319,-686.87,0.0001436,2]
[353512235,1739891449331,-2027.64,0.0001436,2]
[353512237,1739891449345,-500.0,0.0001436,2]
[353512239,1739891449356,-4502.31,0.0001436,2]
[353512242,1739891449366,-10695.12,0.0001436,2]
[353512243,1739891449376,-500.0,0.0001436,2]
[353512245,1739891449387,-500.0,0.0001436,2]
[353512247,1739891449398,-500.0,0.0001436,2]
[353512249,1739891449408,-830.39,0.0001436,2]
[353512251,1739891449420,-500.0,0.0001436,2]
[353512253,1739891449430,-500.0,0.0001436,2]
[353512255,1739891449441,-2366.12,0.0001436,2]
[353512257,1739891449451,-500.0,0.0001436,2]
[353512259,1739891449461,-500.0,0.0001436,2]
[353512261,1739891449471,-500.0,0.0001436,2]
[353512262,1739891449481,-500.0,0.0001436,2]
[353512264,1739891449493,-1100.48,0.0001436,2]
[353512266,1739891449506,-500.0,0.0001436,2]
[353512268,1739891449520,-769.33,0.0001436,2]
[353512270,1739891449533,-500.0,0.0001436,2]
[353512272,1739891449545,-500.0,0.0001436,2]
[353512274,1739891449555,-500.0,0.0001436,2]
[353512276,1739891449567,-522.38,0.0001436,2]
[353512278,1739891449578,-500.0,0.0001436,2]
[353512280,1739891449588,-866.21,0.0001436,2]
[353512282,1739891449599,-500.0,0.0001436,2]
[353512284,1739891449609,-502.63645887,0.0001436,2]
[353512286,1739891449619,-500.0,0.0001436,2]
[353512288,1739891449631,-1364.55,0.0001436,2]
[353512290,1739891449641,-841.2,0.0001436,2]
[353512292,1739891449651,-500.0,0.0001436,2]
[353512293,1739891449661,-1348.21,0.0001436,2]
[353512295,1739891449672,-8705.44,0.0001436,2]
[353512297,1739891449682,-500.0,0.0001436,2]
[353512299,1739891449692,-500.0,0.0001436,2]
[353512301,1739891449702,-1392.9,0.0001436,2]
[353512303,1739891449712,-500.0,0.0001436,2]
[353512305,1739891449722,-500.0,0.0001436,2]
[353512307,1739891449732,-500.0,0.0001436,2]
[353512309,1739891449741,-500.0,0.0001436,2]
[353512310,1739891449751,-500.0,0.0001436,2]
[353512312,1739891449761,-500.0,0.00014363,2]
[353512314,1739891449771,-500.0,0.00014363,2]
[353512316,1739891449781,-500.0,0.00014363,2]
[353512318,1739891449790,-500.0,0.00014363,2]
[353512320,1739891449800,-500.0,0.00014363,2]
[353512322,1739891449810,-547.01087436,0.00014363,2]
[353512324,1739891449821,-500.0,0.00014363,2]
[353512325,1739891449836,-500.0,0.00014363,2]
[353512327,1739891449846,-500.0,0.00014363,2]
[353512329,1739891449857,-500.0,0.00014363,2]
[353512331,1739891449869,-500.0,0.00014363,2]
[353512333,1739891449880,-500.0,0.00014363,2]
[353512335,1739891449891,-500.0,0.00014363,2]
[353512337,1739891449902,-500.0,0.00014363,2]
[353512340,1739891449913,-500.0,0.00014363,2]
[353512342,1739891449924,-500.0,0.00014363,2]
[353512352,1739891450024,-500.0,0.00014363,2]
[353512354,1739891450035,-500.0,0.00014363,2]
[353512356,1739891450046,-500.0,0.00014363,2]
[353512358,1739891450057,-500.0,0.00014363,2]
[353512360,1739891450069,-500.0,0.00014363,2]
[353512361,1739891450086,-500.0,0.00014363,2]
[353512363,1739891450097,-1283.9,0.00014363,2]
[353512365,1739891450108,-500.0,0.00014363,2]
[353512367,1739891450118,-500.0,0.00014363,2]
[353512369,1739891450128,-533.64,0.00014363,2]
[353512371,1739891450139,-500.0,0.00014363,2]
[353512373,1739891450149,-500.0,0.00014363,2]
[353512375,1739891450159,-500.0,0.00014363,2]
[353512377,1739891450170,-342.0,0.00014363,2]
[353512379,1739891450180,-500.0,0.00014363,2]
[353512381,1739891450190,-342.0,0.00014363,2]
[353512382,1739891450200,-500.0,0.00014363,2]
[353512384,1739891450210,-500.0,0.00014363,2]
[353512386,1739891450220,-500.0,0.00014363,2]
[353512388,1739891450231,-500.0,0.00014363,2]
[353512390,1739891450242,-500.0,0.00014363,2]
[353512392,1739891450252,-949.04,0.00014363,2]
[353512394,1739891450263,-500.0,0.00014363,2]
[353512396,1739891450274,-151.0,0.000144,2]
[353512398,1739891450284,-151.0,0.000144,2]
[353512400,1739891450295,-151.0,0.000144,2]
[353512402,1739891450305,-306.4000604,0.000144,2]
[353512404,1739891450316,-303.5242523,0.000144,2]
[353512405,1739891450330,-1487.95842806,0.00014412,2]
[353512407,1739891450344,-751.40195647,0.00014426,2]
[353512409,1739891450354,-700.0,0.00014438,2]
[353512411,1739891450364,-1868.44,0.00014441,2]
[353512413,1739891450377,-500.0,0.00014441,2]
[353512415,1739891450386,-967.97,0.00014441,2]
[353512417,1739891450396,-2653.16,0.00014441,2]
[353512419,1739891450407,-5175.18,0.00014441,2]
[353512421,1739891450417,-2105.37,0.00014441,2]
[353512423,1739891450427,-2054.28,0.00014441,2]
[353512424,1739891450437,-1057.59,0.00014441,2]
[353512426,1739891450446,-814.52,0.00014442,2]
[353512428,1739891450456,-500.0,0.00014442,2]
[353512430,1739891450466,-1464.87,0.00014442,2]
[353512432,1739891450476,-599.18,0.00014442,2]
[353512434,1739891450485,-500.0,0.00014442,2]
[353512435,1739891450494,-2027.64,0.00014442,2]
[353512436,1739891450504,-4502.31,0.00014442,2]
[353512437,1739891450514,-500.0,0.00014442,2]
[353512438,1739891450523,-2366.12,0.00014442,2]
[353512439,1739891450534,-500.0,0.00014442,2]
[353512440,1739891450544,-1100.48,0.00014442,2]
[353512441,1739891450554,-769.33,0.00014442,2]
[353512442,1739891450563,-522.38,0.00014442,2]
[353512443,1739891450575,-500.0,0.00014442,2]
[353512444,1739891450585,-866.21,0.00014442,2]
[353512445,1739891450596,-500.0,0.00014442,2]
[353512447,1739891450606,-500.0,0.00014442,2]
[353512449,1739891450616,-841.2,0.00014442,2]
[353512450,1739891450626,-8705.44,0.00014442,2]
[353512452,1739891450635,-500.0,0.00014442,2]
[353512454,1739891450645,-1392.9,0.00014442,2]
[353512455,1739891450655,-500.0,0.00014442,2]
[353512457,1739891450664,-334.01699511,0.00014442,2]
[353512459,1739891450673,-500.0,0.00014443,2]
[353512461,1739891450683,-500.0,0.00014443,2]
[353512463,1739891450692,-500.0,0.00014443,2]
[353512464,1739891450702,-500.0,0.00014443,2]
[353512466,1739891450712,-500.0,0.00014443,2]
[353512468,1739891450721,-649.16,0.00014443,2]
[353512470,1739891450730,-500.0,0.00014443,2]
[353512472,1739891450740,-500.0,0.00014443,2]
[353512473,1739891450749,-500.0,0.00014443,2]
[353512475,1739891450759,-500.0,0.00014443,2]
[353512477,1739891450769,-549.52,0.00014443,2]
[353512479,1739891450778,-500.0,0.00014443,2]
[353512480,1739891450787,-500.0,0.00014443,2]
[353512482,1739891450797,-500.0,0.00014443,2]
[353512484,1739891450807,-500.0,0.00014443,2]
[353512486,1739891450816,-500.0,0.00014443,2]
[353512487,1739891450827,-500.0,0.00014443,2]
[353512488,1739891450836,-500.0,0.00014443,2]
[353512489,1739891450846,-500.0,0.00014443,2]
[353512490,1739891450856,-500.0,0.00014443,2]
[353512491,1739891450873,-500.0,0.00014443,2]
[353512492,1739891450883,-500.0,0.00014443,2]
[353512493,1739891450892,-500.0,0.00014443,2]
[353512495,1739891450903,-500.0,0.00014443,2]
[353512496,1739891450913,-500.0,0.00014443,2]
[353512498,1739891450923,-500.0,0.00014443,2]
[353512500,1739891450932,-500.0,0.00014443,2]
[353512502,1739891450942,-500.0,0.00014443,2]
[353512504,1739891450951,-500.0,0.00014443,2]
[353512506,1739891450962,-22134.6,0.00014443,2]
[353512508,1739891450971,-1342.14,0.00014443,2]
[353512510,1739891450981,-500.0,0.00014443,2]
[353512512,1739891450991,-686.87,0.00014443,2]
[353512514,1739891451000,-500.0,0.00014443,2]
[353512516,1739891451010,-10695.12,0.00014443,2]
[353512517,1739891451019,-500.0,0.00014443,2]
[353512519,1739891451028,-500.0,0.00014443,2]
[353512521,1739891451038,-830.39,0.00014443,2]
[353512523,1739891451048,-500.0,0.00014443,2]
[353512525,1739891451058,-500.0,0.00014443,2]
[353512526,1739891451068,-500.0,0.00014443,2]
[353512528,1739891451079,-500.0,0.00014443,2]
[353512530,1739891451089,-500.0,0.00014443,2]
[353512531,1739891451099,-500.0,0.00014443,2]
[353512533,1739891451109,-500.0,0.00014443,2]
[353512535,1739891451119,-500.0,0.00014443,2]
[353512537,1739891451128,-500.0,0.00014443,2]
[353512539,1739891451137,-1364.55,0.00014443,2]
[353512541,1739891451147,-500.0,0.00014443,2]
[353512542,1739891451157,-1348.21,0.00014443,2]
[353512544,1739891451168,-500.0,0.00014443,2]
[353512546,1739891451178,-500.0,0.00014443,2]
[353512548,1739891451187,-500.0,0.00014443,2]
[353512550,1739891451197,-500.0,0.00014443,2]
[353512552,1739891451207,-500.0,0.00014445,2]
[353512553,1739891451216,-500.0,0.00014445,2]
[353512555,1739891451225,-500.0,0.00014445,2]
[353512557,1739891451235,-500.0,0.00014445,2]
[353512559,1739891451244,-1283.9,0.00014445,2]
[353512560,1739891451254,-500.0,0.00014445,2]
[353512562,1739891451264,-533.64,0.00014445,2]
[353512564,1739891451273,-500.0,0.00014445,2]
[353512566,1739891451283,-500.0,0.00014445,2]
[353512567,1739891451293,-500.0,0.00014445,2]
[353512569,1739891451303,-500.0,0.00014445,2]
[353512571,1739891451314,-500.0,0.00014445,2]
[353512573,1739891451330,-500.0,0.00014445,2]
[353512575,1739891451352,-500.0,0.00014445,2]
[353512576,1739891451365,-500.0,0.00014445,2]
[353512578,1739891451376,-500.0,0.00014445,2]
[353512580,1739891451386,-949.04,0.00014445,2]
[353512582,1739891451398,-500.0,0.00014445,2]
[353512584,1739891451408,-500.0,0.00014446,2]
[353512585,1739891451418,-500.0,0.00014446,2]
[353512587,1739891451427,-500.0,0.00014446,2]
[353512589,1739891451437,-500.0,0.00014446,2]
[353512590,1739891451446,-500.0,0.00014446,2]
[353512591,1739891451456,-500.0,0.00014446,2]
[353512592,1739891451465,-500.0,0.00014446,2]
[353512593,1739891451475,-500.0,0.00014446,2]
[353512594,1739891451484,-500.0,0.00014446,2]
[353512595,1739891451494,-500.0,0.00014446,2]
[353512596,1739891451504,-500.0,0.00014446,2]
[353512597,1739891451514,-500.0,0.00014446,2]
[353512598,1739891451523,-500.0,0.00014446,2]
[353512599,1739891451532,-500.0,0.00014446,2]
[353512600,1739891451541,-500.0,0.00014446,2]
[353512601,1739891451551,-500.0,0.00014446,2]
[353512602,1739891451560,-151.0,0.000145,2]
[353512603,1739891451570,-151.0,0.000145,2]
[353512604,1739891451582,-634.18323346,0.00014507,2]
[353512605,1739891451592,-634.18323346,0.00014507,2]
[353512606,1739891451602,-634.18323346,0.00014507,2]
[353512607,1739891451611,-634.18323346,0.00014507,2]
[353512608,1739891451621,-634.18323346,0.00014507,2]
[353512609,1739891451630,-634.18323346,0.00014507,2]
[353512610,1739891451641,-634.18323346,0.00014507,2]
[353512611,1739891451651,-634.18323346,0.00014507,2]
[353512612,1739891451661,-634.18323346,0.00014507,2]
[353512613,1739891451671,-634.18323346,0.00014507,2]
[353512614,1739891451681,-634.18323346,0.00014507,2]
[353512615,1739891451691,-634.18323346,0.00014507,2]
[353512616,1739891451701,-634.18323346,0.00014507,2]
[353512617,1739891451711,-634.18323346,0.00014507,2]
[353512618,1739891451721,-634.18323346,0.00014507,2]
[353512619,1739891451731,-634.18323346,0.00014507,2]
[353512620,1739891451740,-634.18323346,0.00014507,2]
[353512621,1739891451750,-634.18323346,0.00014507,2]
[353512622,1739891451759,-634.18323346,0.00014507,2]
[353512623,1739891451768,-634.18,0.00014507,2]
[353512624,1739891451778,-1868.44,0.00014523,2]
[353512625,1739891451787,-500.0,0.00014523,2]
[353512626,1739891451864,-967.97,0.00014523,2]
[353512627,1739891451874,-2653.16,0.00014523,2]
[353512628,1739891451884,-5175.18,0.00014523,2]
[353512629,1739891451894,-2105.37,0.00014523,2]
[353512630,1739891451904,-2054.28,0.00014523,2]
[353512631,1739891451914,-1057.59,0.00014523,2]
[353512632,1739891451924,-814.52,0.00014524,2]
[353512633,1739891451934,-500.0,0.00014524,2]
[353512634,1739891451944,-1464.87,0.00014524,2]
[353512635,1739891451953,-599.18,0.00014524,2]
[353512636,1739891451963,-500.0,0.00014524,2]
[353512637,1739891451972,-2027.64,0.00014524,2]
[353512638,1739891451982,-4502.31,0.00014524,2]
[353512639,1739891451991,-500.0,0.00014524,2]
[353512640,1739891452001,-2366.12,0.00014524,2]
[353512641,1739891452011,-500.0,0.00014524,2]
[353512642,1739891452021,-1100.48,0.00014524,2]
[353512643,1739891452030,-769.33,0.00014524,2]
[353512644,1739891452040,-522.38,0.00014524,2]
[353512645,1739891452050,-500.0,0.00014524,2]
[353512646,1739891452060,-866.21,0.00014524,2]
[353512647,1739891452070,-500.0,0.00014524,2]
[353512648,1739891452081,-500.0,0.00014524,2]
[353512649,1739891452090,-841.2,0.00014524,2]
[353512650,1739891452099,-8705.44,0.00014524,2]
[353512651,1739891452108,-500.0,0.00014524,2]
[353512652,1739891452118,-1392.9,0.00014524,2]
[353512653,1739891452127,-500.0,0.00014524,2]
[353512654,1739891452136,-500.0,0.00014525,2]
[353512655,1739891452146,-500.0,0.00014525,2]
[353512657,1739891452155,-500.0,0.00014525,2]
[353512658,1739891452165,-500.0,0.00014525,2]
[353512659,1739891452174,-500.0,0.00014525,2]
[353512660,1739891452183,-649.16,0.00014525,2]
[353512661,1739891452194,-500.0,0.00014525,2]
[353512662,1739891452203,-500.0,0.00014525,2]
[353512663,1739891452213,-500.0,0.00014525,2]
[353512664,1739891452222,-500.0,0.00014525,2]
[353512665,1739891452232,-549.52,0.00014525,2]
[353512666,1739891452242,-500.0,0.00014525,2]
[353512667,1739891452251,-500.0,0.00014525,2]
[353512668,1739891452261,-500.0,0.00014525,2]
[353512669,1739891452272,-500.0,0.00014525,2]
[353512670,1739891452282,-500.0,0.00014525,2]
[353512671,1739891452291,-500.0,0.00014525,2]
[353512672,1739891452300,-500.0,0.00014525,2]
[353512673,1739891452310,-247.21984906,0.00014525,2]
[353512674,1739891452320,-500.0,0.00014525,2]
[353512675,1739891452334,-500.0,0.00014525,2]
[353512676,1739891452344,-500.0,0.00014525,2]
[353512677,1739891452354,-503.20914958,0.00014525,2]
[353512678,1739891452363,-500.0,0.00014525,2]
[353512679,1739891452373,-500.0,0.00014525,2]
[353512680,1739891452384,-500.0,0.00014525,2]
[353512681,1739891452393,-500.0,0.00014525,2]
[353512682,1739891452402,-500.0,0.00014525,2]
[353512683,1739891452412,-500.0,0.00014525,2]
[353512684,1739891452422,-22134.6,0.00014525,2]
[353512685,1739891452431,-1342.14,0.00014525,2]
[353512686,1739891452440,-500.0,0.00014525,2]
[353512687,1739891452449,-686.87,0.00014525,2]
[353512688,1739891452459,-500.0,0.00014525,2]
[353512689,1739891452468,-10695.12,0.00014525,2]
[353512691,1739891452478,-500.0,0.00014525,2]
[353512692,1739891452487,-500.0,0.00014525,2]
[353512693,1739891452497,-830.39,0.00014525,2]
[353512694,1739891452506,-500.0,0.00014525,2]
[353512695,1739891452515,-500.0,0.00014525,2]
[353512696,1739891452524,-500.0,0.00014525,2]
[353512697,1739891452534,-500.0,0.00014525,2]
[353512698,1739891452544,-500.0,0.00014525,2]
[353512699,1739891452554,-500.0,0.00014525,2]
[353512700,1739891452564,-500.0,0.00014525,2]
[353512701,1739891452574,-500.0,0.00014525,2]
[353512702,1739891452584,-500.0,0.00014525,2]
[353512703,1739891452593,-1364.55,0.00014525,2]
[353512704,1739891452603,-500.0,0.00014525,2]
[353512705,1739891452613,-1348.21,0.00014525,2]
[353512706,1739891452623,-500.0,0.00014525,2]
[353512707,1739891452633,-364.57473165,0.00014525,2]
[353512708,1739891452643,-500.0,0.00014525,2]
[353512709,1739891452652,-500.0,0.00014525,2]
[353512710,1739891452661,-500.0,0.00014527,2]
[353512711,1739891452671,-500.0,0.00014527,2]
[353512712,1739891452680,-500.0,0.00014527,2]
[353512713,1739891452690,-500.0,0.00014527,2]
[353512714,1739891452699,-1283.9,0.00014527,2]
[353512715,1739891452708,-500.0,0.00014527,2]
[353512716,1739891452718,-533.64,0.00014527,2]
[353512717,1739891452729,-500.0,0.00014527,2]
[353512718,1739891452739,-500.0,0.00014527,2]
[353512719,1739891452749,-500.0,0.00014527,2]
[353512720,1739891452759,-500.0,0.00014527,2]
[353512722,1739891452768,-500.0,0.00014527,2]
[353512723,1739891452778,-518.26042046,0.00014527,2]
[353512724,1739891452787,-226.68405958,0.00014527,2]
[353512725,1739891452797,-500.0,0.00014527,2]
[353512726,1739891452807,-500.0,0.00014527,2]
[353512727,1739891452816,-949.04,0.00014527,2]
[353512728,1739891452826,-500.0,0.00014527,2]
[353512729,1739891452836,-500.0,0.00014528,2]
[353512730,1739891452846,-500.0,0.00014528,2]
[353512731,1739891452855,-500.0,0.00014528,2]
[353512732,1739891452864,-500.0,0.00014528,2]
[353512733,1739891452874,-500.0,0.00014528,2]
[353512734,1739891452883,-500.0,0.00014528,2]
[353512735,1739891452893,-500.0,0.00014528,2]
[353512736,1739891452902,-500.0,0.00014528,2]
[353512737,1739891452911,-500.0,0.00014528,2]
[353512738,1739891452921,-500.0,0.00014528,2]
[353512739,1739891452930,-500.0,0.00014528,2]
[353512740,1739891452939,-500.0,0.00014528,2]
[353512741,1739891452949,-500.0,0.00014528,2]
[353512742,1739891452958,-500.0,0.00014528,2]
[353512743,1739891452968,-500.0,0.00014528,2]
[353512744,1739891452977,-151.0,0.000146,2]
[353512745,1739891452987,-151.0,0.000146,2]
[353512746,1739891452997,-1868.44,0.00014605,2]
[353512747,1739891453006,-967.97,0.00014605,2]
[353512748,1739891453015,-2653.16,0.00014605,2]
[353512749,1739891453025,-5175.18,0.00014605,2]
[353512750,1739891453034,-2105.37,0.00014605,2]
[353512751,1739891453044,-2054.28,0.00014605,2]
[353512752,1739891453054,-1057.59,0.00014605,2]
[353512753,1739891453063,-814.52,0.00014606,2]
[353512754,1739891453072,-1464.87,0.00014606,2]
[353512755,1739891453083,-599.18,0.00014606,2]
[353512756,1739891453093,-500.0,0.00014606,2]
[353512757,1739891453102,-2027.64,0.00014606,2]
[353512758,1739891453112,-4502.31,0.00014606,2]
[353512759,1739891453122,-500.0,0.00014606,2]
[353512760,1739891453131,-2366.12,0.00014606,2]